Service Area,Expense Type,Date,Transaction Number,Amount,Supplier
Ef Nursing Island,Chgs From Ind Provs,2011-10-03,5000160925,3804.39,Sandown Nursing Home [Sb]
Ef Nursing Island,Chgs From Ind Provs,2011-10-11,5105691562,2598.12,Buckland Care Ltd [Sb]
Ef Nursing Island,Chgs From Ind Provs,2011-10-11,5105691562,2598.12,Buckland Care Ltd [Sb]
Ef Nursing Island,Chgs From Ind Provs,2011-10-11,5105691562,2598.12,Buckland Care Ltd [Sb]
Ef Nursing Island,Chgs From Ind Provs,2011-10-11,5105691562,929.88,Buckland Care Ltd [Sb]
Ef Nursing Island,Chgs From Ind Provs,2011-10-11,5105691562,2598.12,Buckland Care Ltd [Sb]
Ef Nursing Island,Chgs From Ind Provs,2011-10-11,5105691574,2598.12,Scio Healthcare Ltd [Sb]
Ef Nursing Island,Chgs From Ind Provs,2011-10-11,5105691574,2598.12,Scio Healthcare Ltd [Sb]
Ef Nursing Island,Chgs From Ind Provs,2011-10-11,5105691574,2598.12,Scio Healthcare Ltd [Sb]
Ef Nursing Island,Chgs From Ind Provs,2011-10-11,5105691562,2598.12,Buckland Care Ltd [Sb]
Ef Nursing Island,Chgs From Ind Provs,2011-10-11,5105691562,2598.12,Buckland Care Ltd [Sb]
Ef Nursing Island,Chgs From Ind Provs,2011-10-11,5105691562,2598.12,Buckland Care Ltd [Sb]
Ef Nursing Island,Chgs From Ind Provs,2011-10-11,5105691560,2598.12,Ward House Ltd [Sb]
Ef Nursing Island,Chgs From Ind Provs,2011-10-11,5105691560,2598.12,Ward House Ltd [Sb]
Ef Nursing Island,Chgs From Ind Provs,2011-10-11,5105691562,2598.12,Buckland Care Ltd [Sb]
Ef Nursing Island,Chgs From Ind Provs,2011-10-11,5105691562,2598.12,Buckland Care Ltd [Sb]
Ef Nursing Island,Chgs From Ind Provs,2011-10-11,5105691562,2598.12,Buckland Care Ltd [Sb]
Ef Nursing Island,Chgs From Ind Provs,2011-10-11,5105691562,2598.12,Buckland Care Ltd [Sb]
Ef Nursing Island,Chgs From Ind Provs,2011-10-11,5105691562,2598.12,Buckland Care Ltd [Sb]
Ef Nursing Island,Chgs From Ind Provs,2011-10-11,5105691562,2598.12,Buckland Care Ltd [Sb]
Ef Nursing Island,Chgs From Ind Provs,2011-10-11,5105691574,2598.12,Scio Healthcare Ltd [Sb]
Ef Nursing Island,Chgs From Ind Provs,2011-10-11,5105691574,2598.12,Scio Healthcare Ltd [Sb]
Ef Nursing Island,Chgs From Ind Provs,2011-10-11,5105691574,2598.12,Scio Healthcare Ltd [Sb]
Ef Nursing Island,Chgs From Ind Provs,2011-10-11,5105691581,2598.12,The Orchard House Care Home [Sb]
Ef Nursing Island,Chgs From Ind Provs,2011-10-11,5105691581,2598.12,The Orchard House Care Home [Sb]
Ef Nursing Island,Chgs From Ind Provs,2011-10-11,5105691581,2598.12,The Orchard House Care Home [Sb]
Ef Nursing Island,Chgs From Ind Provs,2011-10-11,5105691581,2598.12,The Orchard House Care Home [Sb]
Ef Nursing Island,Chgs From Ind Provs,2011-10-11,5105691581,2598.12,The Orchard House Care Home [Sb]
Ef Nursing Island,Chgs From Ind Provs,2011-10-11,5105691581,2598.12,The Orchard House Care Home [Sb]
Ef Nursing Island,Chgs From Ind Provs,2011-10-11,5105691581,2598.12,The Orchard House Care Home [Sb]
Ef Nursing Island,Chgs From Ind Provs,2011-10-11,5105691581,2598.12,The Orchard House Care Home [Sb]
Ef Nursing Island,Chgs From Ind Provs,2011-10-11,5105691581,1268.12,The Orchard House Care Home [Sb]
Ef Nursing Island,Chgs From Ind Provs,2011-10-11,5105691581,2598.12,The Orchard House Care Home [Sb]
Ef Nursing Island,Chgs From Ind Provs,2011-10-11,5105691574,2598.12,Scio Healthcare Ltd [Sb]
Ef Nursing Island,Chgs From Ind Provs,2011-10-11,5105691574,580.16,Scio Healthcare Ltd [Sb]
Ef Nursing Island,Chgs From Ind Provs,2011-10-11,5105691574,2598.12,Scio Healthcare Ltd [Sb]
Ef Nursing Island,Chgs From Ind Provs,2011-10-11,5000162676,2859.36,Scio Healthcare Ltd [Sb]
Ef Nursing Island,Chgs From Ind Provs,2011-10-11,5105691574,910.0,Scio Healthcare Ltd [Sb]
Ef Nursing Island,Chgs From Ind Provs,2011-10-11,5105691574,1642.2,Scio Healthcare Ltd [Sb]
Ef Nursing Island,Chgs From Ind Provs,2011-10-11,5105691574,2598.12,Scio Healthcare Ltd [Sb]
Ef Nursing Island,Chgs From Ind Provs,2011-10-11,5105691581,2598.12,The Orchard House Care Home [Sb]
Ef Nursing Island,Chgs From Ind Provs,2011-10-11,5105691581,2598.12,The Orchard House Care Home [Sb]
Ef Nursing Island,Chgs From Ind Provs,2011-10-11,5105691560,2598.12,Ward House Ltd [Sb]
Ef Nursing Island,Chgs From Ind Provs,2011-10-11,5105691512,2598.12,Kite Hill Nursing Home [Sb]
Ef Nursing Island,Chgs From Ind Provs,2011-10-11,5105691537,2598.12,Island Healthcare Ltd [Sb]
Ef Nursing Island,Chgs From Ind Provs,2011-10-11,5105691537,2598.12,Island Healthcare Ltd [Sb]
Ef Nursing Island,Chgs From Ind Provs,2011-10-11,5105691537,2598.12,Island Healthcare Ltd [Sb]
Ef Nursing Island,Chgs From Ind Provs,2011-10-11,5105691537,2598.12,Island Healthcare Ltd [Sb]
Ef Nursing Island,Chgs From Ind Provs,2011-10-11,5105691537,2598.12,Island Healthcare Ltd [Sb]
Ef Nursing Island,Chgs From Ind Provs,2011-10-11,5105691538,2598.12,Woodside Hall Nursing Home [Sb]
Ef Nursing Island,Chgs From Ind Provs,2011-10-11,5105691538,2598.12,Woodside Hall Nursing Home [Sb]
Ef Nursing Island,Chgs From Ind Provs,2011-10-11,5105691538,2598.12,Woodside Hall Nursing Home [Sb]
Ef Nursing Island,Chgs From Ind Provs,2011-10-11,5105691537,2598.12,Island Healthcare Ltd [Sb]
Ef Nursing Island,Chgs From Ind Provs,2011-10-11,5105691537,2598.12,Island Healthcare Ltd [Sb]
Ef Nursing Island,Chgs From Ind Provs,2011-10-11,5105691512,2598.12,Kite Hill Nursing Home [Sb]
Ef Nursing Island,Chgs From Ind Provs,2011-10-11,5105691512,2598.12,Kite Hill Nursing Home [Sb]
Ef Nursing Island,Chgs From Ind Provs,2011-10-11,5105691512,2598.12,Kite Hill Nursing Home [Sb]
Ef Nursing Island,Chgs From Ind Provs,2011-10-11,5105691512,2598.12,Kite Hill Nursing Home [Sb]
Ef Nursing Island,Chgs From Ind Provs,2011-10-11,5105691512,2598.12,Kite Hill Nursing Home [Sb]
Ef Nursing Island,Chgs From Ind Provs,2011-10-11,5105691529,2939.72,Vecta House Care Home [Sb]
Ef Nursing Island,Chgs From Ind Provs,2011-10-11,5105691529,2890.44,Vecta House Care Home [Sb]
Ef Nursing Island,Chgs From Ind Provs,2011-10-11,5105691529,2939.72,Vecta House Care Home [Sb]
Ef Nursing Island,Chgs From Ind Provs,2011-10-11,5105691538,2598.12,Woodside Hall Nursing Home [Sb]
Ef Nursing Island,Chgs From Ind Provs,2011-10-11,5105691538,2598.12,Woodside Hall Nursing Home [Sb]
Ef Nursing Island,Chgs From Ind Provs,2011-10-11,5105691538,598.36,Woodside Hall Nursing Home [Sb]
Ef Nursing Island,Chgs From Ind Provs,2011-10-11,5105691547,2598.12,Sandown Nursing Home [Sb]
Ef Nursing Island,Chgs From Ind Provs,2011-10-11,5105691547,2598.12,Sandown Nursing Home [Sb]
Ef Nursing Island,Chgs From Ind Provs,2011-10-11,5105691560,2598.12,Ward House Ltd [Sb]
Ef Nursing Island,Chgs From Ind Provs,2011-10-11,5105691560,2598.12,Ward House Ltd [Sb]
Ef Nursing Island,Chgs From Ind Provs,2011-10-11,5105691560,2598.12,Ward House Ltd [Sb]
Ef Nursing Island,Chgs From Ind Provs,2011-10-11,5105691560,2598.12,Ward House Ltd [Sb]
Ef Nursing Island,Chgs From Ind Provs,2011-10-11,5105691560,2598.12,Ward House Ltd [Sb]
Ef Nursing Island,Chgs From Ind Provs,2011-10-11,5105691560,2598.12,Ward House Ltd [Sb]
Ef Nursing Island,Chgs From Ind Provs,2011-10-11,5105691547,2598.12,Sandown Nursing Home [Sb]
Ef Nursing Island,Chgs From Ind Provs,2011-10-11,5105691547,2598.12,Sandown Nursing Home [Sb]
Ef Nursing Island,Chgs From Ind Provs,2011-10-11,5105691547,2598.12,Sandown Nursing Home [Sb]
Ef Nursing Island,Chgs From Ind Provs,2011-10-11,5105691538,2598.12,Woodside Hall Nursing Home [Sb]
Ef Nursing Island,Chgs From Ind Provs,2011-10-11,5105691538,2598.12,Woodside Hall Nursing Home [Sb]
Ef Nursing Island,Chgs From Ind Provs,2011-10-11,5105691547,2598.12,Sandown Nursing Home [Sb]
Ef Nursing Island,Chgs From Ind Provs,2011-10-11,5105691547,2598.12,Sandown Nursing Home [Sb]
Ef Nursing Island,Chgs From Ind Provs,2011-10-11,5105691547,2598.12,Sandown Nursing Home [Sb]
Ef Nursing Island,Chgs From Ind Provs,2011-10-11,5105691547,2598.12,Sandown Nursing Home [Sb]
Ef Nursing Island,Chgs From Ind Provs,2011-10-11,5105691547,2598.12,Sandown Nursing Home [Sb]
Ef Nursing Island,Chgs From Ind Provs,2011-10-11,5105691547,2598.12,Sandown Nursing Home [Sb]
Ef Nursing Island,Chgs From Ind Provs,2011-10-12,1700044573,-927.9,Sandown Nursing Home [Sb]
Ef Nursing Island,Chgs From Ind Provs,2011-10-12,5000162841,649.53,Sandown Nursing Home [Sb]
Ef Nursing Island,Chgs From Ind Provs,2011-10-13,5000163041,2598.12,Buckland Care Ltd [Sb]
Ef Nursing Island,Chgs From Ind Provs,2011-10-13,5000163037,2598.12,Buckland Care Ltd [Sb]
Ef Nursing Island,Chgs From Ind Provs,2011-10-13,5000163019,2783.7,Kite Hill Nursing Home [Sb]
Ef Nursing Island,Chgs From Ind Provs,2011-10-18,1900412811,978.39,The Orchard House Care Home [Sb]
Ef Nursing Island,Chgs From Ind Provs,2011-10-18,1900412702,916.27,The Orchard House Care Home [Sb]
Ef Nursing Island,Chgs From Ind Provs,2011-10-18,1700044581,-823.09,Scio Healthcare Ltd [Sb]
Ef Nursing Island,Chgs From Ind Provs,2011-10-18,1900412812,1257.93,Scio Healthcare Ltd [Sb]
Ef Nursing Island,Chgs From Ind Provs,2011-10-18,1700044579,-869.68,Scio Healthcare Ltd [Sb]
Ef Nursing Island,Chgs From Ind Provs,2011-10-18,1700044583,-1948.59,Ward House Ltd [Sb]
Ef Nursing Island,Chgs From Ind Provs,2011-10-18,1900412701,962.86,Island Healthcare Ltd [Sb]
Ef Nursing Island,Chgs From Ind Provs,2011-10-18,1700044580,-1056.04,Island Healthcare Ltd [Sb]
Ef Nursing Island,Chgs From Ind Provs,2011-10-18,1900412699,947.33,Kite Hill Nursing Home [Sb]
Ef Nursing Island,Chgs From Ind Provs,2011-10-19,1900413099,652.26,Scio Healthcare Ltd [Sb]
Ef Nursing Island,Chgs From Ind Provs,2011-10-19,1900413097,714.38,Scio Healthcare Ltd [Sb]
Ef Nursing Island,Chgs From Ind Provs,2011-10-19,1700044586,-1785.95,Scio Healthcare Ltd [Sb]
Ef Nursing Island,Chgs From Ind Provs,2011-10-19,1700044585,-978.39,Scio Healthcare Ltd [Sb]
Ef Nursing Island,Chgs From Ind Provs,2011-10-19,1900413073,869.68,Sandown Nursing Home [Sb]
Ef Nursing Island,Chgs From Ind Provs,2011-10-19,1900413076,760.97,Island Healthcare Ltd [Sb]
Ef Nursing Island,Chgs From Ind Provs,2011-10-20,1900413264,652.26,Scio Healthcare Ltd [Sb]
Ef Nursing Island,Chgs From Ind Provs,2011-10-25,5000163767,2783.7,Scio Healthcare Ltd [Sb]
Ef Nursing Island,Chgs From Ind Provs,2011-10-26,5000163872,2783.7,Scio Healthcare Ltd [Sb]
Ef Nursing Island,Chgs From Ind Provs,2011-10-27,5000164048,3989.97,Sandown Nursing Home [Sb]
Ef Nursing Island,Chgs From Ind Provs,2011-10-31,5000164528,3433.23,Scio Healthcare Ltd [Sb]
Ef Nursing Island,Chgs From Ind Provs,2011-10-31,5000164525,742.32,Scio Healthcare Ltd [Sb]
Ef Nursing Island,Chgs From Ind Provs,2011-11-03,5000164968,1391.85,Woodside Hall Nursing Home [Sb]
Ef Nursing Island,Chgs From Ind Provs,2011-11-03,5000165063,-1391.85,Woodside Hall Nursing Home [Sb]
Ef Nursing Island,Chgs From Ind Provs,2011-11-03,5000165064,1948.59,Woodside Hall Nursing Home [Sb]
Ef Nursing Island,Chgs From Ind Provs,2011-11-03,5000164930,4732.29,Buckland Care Ltd [Sb]
Ef Nursing Island,Chgs From Ind Provs,2011-11-03,5000164955,1206.27,Scio Healthcare Ltd [Sb]
Ef Nursing Island,Chgs From Ind Provs,2011-11-03,5000164961,1391.85,Scio Healthcare Ltd [Sb]
Ef Nursing Island,Chgs From Ind Provs,2011-11-03,5000164975,2783.7,Scio Healthcare Ltd [Sb]
Ef Nursing Island,Chgs From Ind Provs,2011-11-04,1900419590,605.67,Scio Healthcare Ltd [Sb]
Ef Nursing Island,Chgs From Ind Provs,2011-11-04,1700044643,-512.49,Scio Healthcare Ltd [Sb]
Ef Nursing Island,Chgs From Ind Provs,2011-11-07,1900419678,5196.24,Sandown Nursing Home [Sb]
Ef Nursing Island,Chgs From Ind Provs,2011-11-08,5105696455,1642.2,Scio Healthcare Ltd [Sb]
Ef Nursing Island,Chgs From Ind Provs,2011-11-08,5105696455,1642.2,Scio Healthcare Ltd [Sb]
Ef Nursing Island,Chgs From Ind Provs,2011-11-08,5105696455,2598.12,Scio Healthcare Ltd [Sb]
Ef Nursing Island,Chgs From Ind Provs,2011-11-08,5105696455,2598.12,Scio Healthcare Ltd [Sb]
Ef Nursing Island,Chgs From Ind Provs,2011-11-08,5105696455,2598.12,Scio Healthcare Ltd [Sb]
Ef Nursing Island,Chgs From Ind Provs,2011-11-08,5105696455,2598.12,Scio Healthcare Ltd [Sb]
Ef Nursing Island,Chgs From Ind Provs,2011-11-08,5105696455,2598.12,Scio Healthcare Ltd [Sb]
Ef Nursing Island,Chgs From Ind Provs,2011-11-08,5105696455,2598.12,Scio Healthcare Ltd [Sb]
Ef Nursing Island,Chgs From Ind Provs,2011-11-08,5105696455,2598.12,Scio Healthcare Ltd [Sb]
Ef Nursing Island,Chgs From Ind Provs,2011-11-08,5105696455,2598.12,Scio Healthcare Ltd [Sb]
Ef Nursing Island,Chgs From Ind Provs,2011-11-08,5105696455,2598.12,Scio Healthcare Ltd [Sb]
Ef Nursing Island,Chgs From Ind Provs,2011-11-08,5105696455,1930.32,Scio Healthcare Ltd [Sb]
Ef Nursing Island,Chgs From Ind Provs,2011-11-08,5105696455,1567.72,Scio Healthcare Ltd [Sb]
Ef Nursing Island,Chgs From Ind Provs,2011-11-08,5105696443,2598.12,Buckland Care Ltd [Sb]
Ef Nursing Island,Chgs From Ind Provs,2011-11-08,5105696443,2598.12,Buckland Care Ltd [Sb]
Ef Nursing Island,Chgs From Ind Provs,2011-11-08,5105696443,2598.12,Buckland Care Ltd [Sb]
Ef Nursing Island,Chgs From Ind Provs,2011-11-08,5105696443,2598.12,Buckland Care Ltd [Sb]
Ef Nursing Island,Chgs From Ind Provs,2011-11-08,5105696443,2598.12,Buckland Care Ltd [Sb]
Ef Nursing Island,Chgs From Ind Provs,2011-11-08,5105696443,2598.12,Buckland Care Ltd [Sb]
Ef Nursing Island,Chgs From Ind Provs,2011-11-08,5105696443,2598.12,Buckland Care Ltd [Sb]
Ef Nursing Island,Chgs From Ind Provs,2011-11-08,5000165652,2783.7,Buckland Care Ltd [Sb]
Ef Nursing Island,Chgs From Ind Provs,2011-11-08,5105696443,2598.12,Buckland Care Ltd [Sb]
Ef Nursing Island,Chgs From Ind Provs,2011-11-08,5105696443,2598.12,Buckland Care Ltd [Sb]
Ef Nursing Island,Chgs From Ind Provs,2011-11-08,5105696443,2598.12,Buckland Care Ltd [Sb]
Ef Nursing Island,Chgs From Ind Provs,2011-11-08,5105696443,929.88,Buckland Care Ltd [Sb]
Ef Nursing Island,Chgs From Ind Provs,2011-11-08,5105696455,2884.0,Scio Healthcare Ltd [Sb]
Ef Nursing Island,Chgs From Ind Provs,2011-11-08,5105696455,2598.12,Scio Healthcare Ltd [Sb]
Ef Nursing Island,Chgs From Ind Provs,2011-11-08,5105696455,2598.12,Scio Healthcare Ltd [Sb]
Ef Nursing Island,Chgs From Ind Provs,2011-11-08,5105696455,580.16,Scio Healthcare Ltd [Sb]
Ef Nursing Island,Chgs From Ind Provs,2011-11-08,5105696455,2598.12,Scio Healthcare Ltd [Sb]
Ef Nursing Island,Chgs From Ind Provs,2011-11-08,5105696455,910.0,Scio Healthcare Ltd [Sb]
Ef Nursing Island,Chgs From Ind Provs,2011-11-08,5105696455,1642.2,Scio Healthcare Ltd [Sb]
Ef Nursing Island,Chgs From Ind Provs,2011-11-08,5105696455,1930.32,Scio Healthcare Ltd [Sb]
Ef Nursing Island,Chgs From Ind Provs,2011-11-08,5105696462,1930.32,The Orchard House Care Home [Sb]
Ef Nursing Island,Chgs From Ind Provs,2011-11-08,5105696462,2598.12,The Orchard House Care Home [Sb]
Ef Nursing Island,Chgs From Ind Provs,2011-11-08,5105696462,2598.12,The Orchard House Care Home [Sb]
Ef Nursing Island,Chgs From Ind Provs,2011-11-08,5105696462,2598.12,The Orchard House Care Home [Sb]
Ef Nursing Island,Chgs From Ind Provs,2011-11-08,5105696462,2598.12,The Orchard House Care Home [Sb]
Ef Nursing Island,Chgs From Ind Provs,2011-11-08,5105696462,2598.12,The Orchard House Care Home [Sb]
Ef Nursing Island,Chgs From Ind Provs,2011-11-08,5105696455,2598.12,Scio Healthcare Ltd [Sb]
Ef Nursing Island,Chgs From Ind Provs,2011-11-08,5105696455,2598.12,Scio Healthcare Ltd [Sb]
Ef Nursing Island,Chgs From Ind Provs,2011-11-08,5105696455,2598.12,Scio Healthcare Ltd [Sb]
Ef Nursing Island,Chgs From Ind Provs,2011-11-08,5105696455,2598.12,Scio Healthcare Ltd [Sb]
Ef Nursing Island,Chgs From Ind Provs,2011-11-08,5105696455,2598.12,Scio Healthcare Ltd [Sb]
Ef Nursing Island,Chgs From Ind Provs,2011-11-08,5105696455,2598.12,Scio Healthcare Ltd [Sb]
Ef Nursing Island,Chgs From Ind Provs,2011-11-08,5105696455,2598.12,Scio Healthcare Ltd [Sb]
Ef Nursing Island,Chgs From Ind Provs,2011-11-08,5105696455,2598.12,Scio Healthcare Ltd [Sb]
Ef Nursing Island,Chgs From Ind Provs,2011-11-08,5105696455,2598.12,Scio Healthcare Ltd [Sb]
Ef Nursing Island,Chgs From Ind Provs,2011-11-08,5105696455,2598.12,Scio Healthcare Ltd [Sb]
Ef Nursing Island,Chgs From Ind Provs,2011-11-08,5000165660,2783.7,Scio Healthcare Ltd [Sb]
Ef Nursing Island,Chgs From Ind Provs,2011-11-08,5105696455,2598.12,Scio Healthcare Ltd [Sb]
Ef Nursing Island,Chgs From Ind Provs,2011-11-08,5105696455,2598.12,Scio Healthcare Ltd [Sb]
Ef Nursing Island,Chgs From Ind Provs,2011-11-08,5105696462,2598.12,The Orchard House Care Home [Sb]
Ef Nursing Island,Chgs From Ind Provs,2011-11-08,5105696443,2598.12,Buckland Care Ltd [Sb]
Ef Nursing Island,Chgs From Ind Provs,2011-11-08,5105696393,2598.12,Kite Hill Nursing Home [Sb]
Ef Nursing Island,Chgs From Ind Provs,2011-11-08,5105696418,2598.12,Island Healthcare Ltd [Sb]
Ef Nursing Island,Chgs From Ind Provs,2011-11-08,5105696418,2598.12,Island Healthcare Ltd [Sb]
Ef Nursing Island,Chgs From Ind Provs,2011-11-08,5105696418,2598.12,Island Healthcare Ltd [Sb]
Ef Nursing Island,Chgs From Ind Provs,2011-11-08,5105696418,2598.12,Island Healthcare Ltd [Sb]
Ef Nursing Island,Chgs From Ind Provs,2011-11-08,5105696418,2598.12,Island Healthcare Ltd [Sb]
Ef Nursing Island,Chgs From Ind Provs,2011-11-08,5105696419,2598.12,Woodside Hall Nursing Home [Sb]
Ef Nursing Island,Chgs From Ind Provs,2011-11-08,5105696419,2598.12,Woodside Hall Nursing Home [Sb]
Ef Nursing Island,Chgs From Ind Provs,2011-11-08,5105696419,2598.12,Woodside Hall Nursing Home [Sb]
Ef Nursing Island,Chgs From Ind Provs,2011-11-08,5105696419,2598.12,Woodside Hall Nursing Home [Sb]
Ef Nursing Island,Chgs From Ind Provs,2011-11-08,5105696419,2598.12,Woodside Hall Nursing Home [Sb]
Ef Nursing Island,Chgs From Ind Provs,2011-11-08,5105696419,598.36,Woodside Hall Nursing Home [Sb]
Ef Nursing Island,Chgs From Ind Provs,2011-11-08,5105696418,2598.12,Island Healthcare Ltd [Sb]
Ef Nursing Island,Chgs From Ind Provs,2011-11-08,5105696418,2598.12,Island Healthcare Ltd [Sb]
Ef Nursing Island,Chgs From Ind Provs,2011-11-08,5105696393,2598.12,Kite Hill Nursing Home [Sb]
Ef Nursing Island,Chgs From Ind Provs,2011-11-08,5105696393,2598.12,Kite Hill Nursing Home [Sb]
Ef Nursing Island,Chgs From Ind Provs,2011-11-08,5105696393,2598.12,Kite Hill Nursing Home [Sb]
Ef Nursing Island,Chgs From Ind Provs,2011-11-08,5105696393,2598.12,Kite Hill Nursing Home [Sb]
Ef Nursing Island,Chgs From Ind Provs,2011-11-08,5105696393,2598.12,Kite Hill Nursing Home [Sb]
Ef Nursing Island,Chgs From Ind Provs,2011-11-08,5105696418,2598.12,Island Healthcare Ltd [Sb]
Ef Nursing Island,Chgs From Ind Provs,2011-11-08,5105696418,2598.12,Island Healthcare Ltd [Sb]
Ef Nursing Island,Chgs From Ind Provs,2011-11-08,5105696418,2598.12,Island Healthcare Ltd [Sb]
Ef Nursing Island,Chgs From Ind Provs,2011-11-08,5105696418,2598.12,Island Healthcare Ltd [Sb]
Ef Nursing Island,Chgs From Ind Provs,2011-11-08,5105696418,2598.12,Island Healthcare Ltd [Sb]
Ef Nursing Island,Chgs From Ind Provs,2011-11-08,5105696418,2598.12,Island Healthcare Ltd [Sb]
Ef Nursing Island,Chgs From Ind Provs,2011-11-08,5105696419,2598.12,Woodside Hall Nursing Home [Sb]
Ef Nursing Island,Chgs From Ind Provs,2011-11-08,5105696419,2598.12,Woodside Hall Nursing Home [Sb]
Ef Nursing Island,Chgs From Ind Provs,2011-11-08,5105696419,2598.12,Woodside Hall Nursing Home [Sb]
Ef Nursing Island,Chgs From Ind Provs,2011-11-08,5105696441,2598.12,Ward House Ltd [Sb]
Ef Nursing Island,Chgs From Ind Provs,2011-11-08,5105696441,2598.12,Ward House Ltd [Sb]
Ef Nursing Island,Chgs From Ind Provs,2011-11-08,5105696441,2598.12,Ward House Ltd [Sb]
Ef Nursing Island,Chgs From Ind Provs,2011-11-08,5105696441,2598.12,Ward House Ltd [Sb]
Ef Nursing Island,Chgs From Ind Provs,2011-11-08,5105696441,2598.12,Ward House Ltd [Sb]
Ef Nursing Island,Chgs From Ind Provs,2011-11-08,5105696441,2598.12,Ward House Ltd [Sb]
Ef Nursing Island,Chgs From Ind Provs,2011-11-08,5105696441,2598.12,Ward House Ltd [Sb]
Ef Nursing Island,Chgs From Ind Provs,2011-11-08,5105696443,2598.12,Buckland Care Ltd [Sb]
Ef Nursing Island,Chgs From Ind Provs,2011-11-08,5105696443,2598.12,Buckland Care Ltd [Sb]
Ef Nursing Island,Chgs From Ind Provs,2011-11-08,5105696443,2598.12,Buckland Care Ltd [Sb]
Ef Nursing Island,Chgs From Ind Provs,2011-11-08,5105696443,2598.12,Buckland Care Ltd [Sb]
Ef Nursing Island,Chgs From Ind Provs,2011-11-08,5105696441,2598.12,Ward House Ltd [Sb]
Ef Nursing Island,Chgs From Ind Provs,2011-11-08,5105696441,2598.12,Ward House Ltd [Sb]
Ef Nursing Island,Chgs From Ind Provs,2011-11-08,5105696428,2598.12,Sandown Nursing Home [Sb]
Ef Nursing Island,Chgs From Ind Provs,2011-11-08,5105696428,2598.12,Sandown Nursing Home [Sb]
Ef Nursing Island,Chgs From Ind Provs,2011-11-08,5105696428,2598.12,Sandown Nursing Home [Sb]
Ef Nursing Island,Chgs From Ind Provs,2011-11-08,5105696428,2598.12,Sandown Nursing Home [Sb]
Ef Nursing Island,Chgs From Ind Provs,2011-11-08,5105696428,2598.12,Sandown Nursing Home [Sb]
Ef Nursing Island,Chgs From Ind Provs,2011-11-08,5105696428,2598.12,Sandown Nursing Home [Sb]
Ef Nursing Island,Chgs From Ind Provs,2011-11-08,5105696428,2598.12,Sandown Nursing Home [Sb]
Ef Nursing Island,Chgs From Ind Provs,2011-11-08,5105696428,2598.12,Sandown Nursing Home [Sb]
Ef Nursing Island,Chgs From Ind Provs,2011-11-08,5105696428,2598.12,Sandown Nursing Home [Sb]
Ef Nursing Island,Chgs From Ind Provs,2011-11-08,5105696428,2598.12,Sandown Nursing Home [Sb]
Ef Nursing Island,Chgs From Ind Provs,2011-11-08,5105696428,2598.12,Sandown Nursing Home [Sb]
Ef Nursing Island,Chgs From Ind Provs,2011-11-08,5000165659,2783.7,Sandown Nursing Home [Sb]
Ef Nursing Island,Chgs From Ind Provs,2011-11-09,5000165878,2783.7,Scio Healthcare Ltd [Sb]
Ef Nursing Island,Chgs From Ind Provs,2011-11-09,5000165874,2783.7,Scio Healthcare Ltd [Sb]
Ef Nursing Island,Chgs From Ind Provs,2011-11-10,5000166053,1999.26,Scio Healthcare Ltd [Sb]
Ef Nursing Island,Chgs From Ind Provs,2011-11-11,5000166466,2876.49,Sandown Nursing Home [Sb]
Ef Nursing Island,Chgs From Ind Provs,2011-11-14,1700044674,-2170.05,Buckland Care Ltd [Sb]
Ef Nursing Island,Chgs From Ind Provs,2011-11-15,5000167044,1309.86,Scio Healthcare Ltd [Sb]
Ef Nursing Island,Chgs From Ind Provs,2011-11-15,5000167042,2991.15,Scio Healthcare Ltd [Sb]
Ef Nursing Island,Chgs From Ind Provs,2011-11-16,5000167609,2783.7,Scio Healthcare Ltd [Sb]
Ef Nursing Island,Chgs From Ind Provs,2011-11-16,5000167592,2598.12,Buckland Care Ltd [Sb]
Ef Nursing Island,Chgs From Ind Provs,2011-11-16,5000167581,2783.7,Island Healthcare Ltd [Sb]
Ef Nursing Island,Chgs From Ind Provs,2011-11-16,5000167572,2226.96,Island Healthcare Ltd [Sb]
Ef Nursing Island,Chgs From Ind Provs,2011-11-16,5000167470,2598.12,Island Healthcare Ltd [Sb]
Ef Nursing Island,Chgs From Ind Provs,2011-11-16,5000167579,742.32,Island Healthcare Ltd [Sb]
Ef Nursing Island,Chgs From Ind Provs,2011-11-17,5000167654,1299.06,Island Healthcare Ltd [Sb]
Ef Nursing Island,Chgs From Ind Provs,2011-11-17,5000167782,-4639.5,Island Healthcare Ltd [Sb]
Ef Nursing Island,Chgs From Ind Provs,2011-11-17,5000167780,4639.5,Island Healthcare Ltd [Sb]
Ef Nursing Island,Chgs From Ind Provs,2011-11-18,5000167900,4268.34,Island Healthcare Ltd [Sb]
Ef Nursing Island,Chgs From Ind Provs,2011-11-18,5000167890,1930.32,Island Healthcare Ltd [Sb]
Ef Nursing Island,Chgs From Ind Provs,2011-11-21,5000168044,1930.32,Scio Healthcare Ltd [Sb]
Ef Nursing Island,Chgs From Ind Provs,2011-11-24,1700044693,-1195.81,Sandown Nursing Home [Sb]
Ef Nursing Island,Chgs From Ind Provs,2011-11-28,1700044722,-1118.16,Sandown Nursing Home [Sb]
Ef Nursing Island,Chgs From Ind Provs,2011-12-06,5105603039,1567.72,London Residential Healthcare [Sb]
Ef Nursing Island,Chgs From Ind Provs,2011-12-06,5105603039,1930.32,London Residential Healthcare [Sb]
Ef Nursing Island,Chgs From Ind Provs,2011-12-06,5105603039,1642.2,London Residential Healthcare [Sb]
Ef Nursing Island,Chgs From Ind Provs,2011-12-06,5105603039,1930.32,London Residential Healthcare [Sb]
Ef Nursing Island,Chgs From Ind Provs,2011-12-06,5105603039,1930.32,London Residential Healthcare [Sb]
Ef Nursing Island,Chgs From Ind Provs,2011-12-06,5105603039,1642.2,London Residential Healthcare [Sb]
Ef Nursing Island,Chgs From Ind Provs,2011-12-06,5105603039,1930.32,London Residential Healthcare [Sb]
Ef Nursing Island,Chgs From Ind Provs,2011-12-06,5105603009,2598.12,Buckland Care Ltd [Sb]
Ef Nursing Island,Regular Respite Care,2011-12-06,5105602994,2598.12,Sandown Nursing Home [Sb]
Ef Nursing Island,Regular Respite Care,2011-12-06,5105602994,2598.12,Sandown Nursing Home [Sb]
Ef Nursing Island,Regular Respite Care,2011-12-06,5105602994,2598.12,Sandown Nursing Home [Sb]
Ef Nursing Island,Crisis Supp   Carers,2011-12-06,5105602994,2598.12,Sandown Nursing Home [Sb]
Ef Nursing Island,Chgs From Ind Provs,2011-12-06,1700044756,-2505.33,Buckland Care Ltd [Sb]
Ef Nursing Island,Charges From Independent Providers,2012-01-03,5105607641,2598.12,Island Healthcare Ltd [Sb]
Ef Nursing Island,Charges From Independent Providers,2012-01-03,5105607641,2598.12,Island Healthcare Ltd [Sb]
Ef Nursing Island,Charges From Independent Providers,2012-01-03,5105607641,2598.12,Island Healthcare Ltd [Sb]
Ef Nursing Island,Charges From Independent Providers,2012-01-03,5105607641,2598.12,Island Healthcare Ltd [Sb]
Ef Nursing Island,Charges From Independent Providers,2012-01-03,5105607641,2598.12,Island Healthcare Ltd [Sb]
Ef Nursing Island,Charges From Independent Providers,2012-01-03,5105607641,2598.12,Island Healthcare Ltd [Sb]
Ef Nursing Island,Charges From Independent Providers,2012-01-03,5105607678,2598.12,Scio Healthcare Ltd [Sb]
Ef Nursing Island,Charges From Independent Providers,2012-01-03,5105607678,2598.12,Scio Healthcare Ltd [Sb]
Ef Nursing Island,Charges From Independent Providers,2012-01-03,5105607678,2598.12,Scio Healthcare Ltd [Sb]
Ef Nursing Island,Charges From Independent Providers,2012-01-03,5105607678,2598.12,Scio Healthcare Ltd [Sb]
Ef Nursing Island,Charges From Independent Providers,2012-01-03,5105607641,2598.12,Island Healthcare Ltd [Sb]
Ef Nursing Island,Charges From Independent Providers,2012-01-03,5105607641,2598.12,Island Healthcare Ltd [Sb]
Ef Nursing Island,Charges From Independent Providers,2012-01-03,1700044825,-1484.64,Scio Healthcare Ltd [Sb]
Ef Nursing Island,Charges From Independent Providers,2012-01-03,5105607678,2598.12,Scio Healthcare Ltd [Sb]
Ef Nursing Island,Charges From Independent Providers,2012-01-03,5105607678,2598.12,Scio Healthcare Ltd [Sb]
Ef Nursing Island,Charges From Independent Providers,2012-01-03,5105607678,2598.12,Scio Healthcare Ltd [Sb]
Ef Nursing Island,Charges From Independent Providers,2012-01-03,5105607678,2598.12,Scio Healthcare Ltd [Sb]
Ef Nursing Island,Charges From Independent Providers,2012-01-03,5105607678,2598.12,Scio Healthcare Ltd [Sb]
Ef Nursing Island,Charges From Independent Providers,2012-01-03,5105607678,2598.12,Scio Healthcare Ltd [Sb]
Ef Nursing Island,Charges From Independent Providers,2012-01-03,5105607678,2598.12,Scio Healthcare Ltd [Sb]
Ef Nursing Island,Charges From Independent Providers,2012-01-03,5105607641,2598.12,Island Healthcare Ltd [Sb]
Ef Nursing Island,Charges From Independent Providers,2012-01-03,1700044827,-2134.17,Scio Healthcare Ltd [Sb]
Ef Nursing Island,Charges From Independent Providers,2012-01-03,5105607678,2598.12,Scio Healthcare Ltd [Sb]
Ef Nursing Island,Charges From Independent Providers,2012-01-03,5105607678,2598.12,Scio Healthcare Ltd [Sb]
Ef Nursing Island,Charges From Independent Providers,2012-01-03,5105607651,2598.12,Sandown Nursing Home [Sb]
Ef Nursing Island,Charges From Independent Providers,2012-01-03,5105607651,2598.12,Sandown Nursing Home [Sb]
Ef Nursing Island,Charges From Independent Providers,2012-01-03,5105607651,2598.12,Sandown Nursing Home [Sb]
Ef Nursing Island,Charges From Independent Providers,2012-01-03,5105607651,2598.12,Sandown Nursing Home [Sb]
Ef Nursing Island,Charges From Independent Providers,2012-01-03,5105607651,2598.12,Sandown Nursing Home [Sb]
Ef Nursing Island,Charges From Independent Providers,2012-01-03,5105607651,2598.12,Sandown Nursing Home [Sb]
Ef Nursing Island,Charges From Independent Providers,2012-01-03,5105607651,2598.12,Sandown Nursing Home [Sb]
Ef Nursing Island,Charges From Independent Providers,2012-01-03,5105607651,2598.12,Sandown Nursing Home [Sb]
Ef Nursing Island,Charges From Independent Providers,2012-01-03,5105607651,2598.12,Sandown Nursing Home [Sb]
Ef Nursing Island,Charges From Independent Providers,2012-01-03,5105607696,2598.12,London Residential Healthcare [Sb]
Ef Nursing Island,Charges From Independent Providers,2012-01-03,5105607696,2598.12,London Residential Healthcare [Sb]
Ef Nursing Island,Charges From Independent Providers,2012-01-03,5105607678,2884.0,Scio Healthcare Ltd [Sb]
Ef Nursing Island,Charges From Independent Providers,2012-01-03,5105607678,2598.12,Scio Healthcare Ltd [Sb]
Ef Nursing Island,Charges From Independent Providers,2012-01-03,5105607678,2598.12,Scio Healthcare Ltd [Sb]
Ef Nursing Island,Charges From Independent Providers,2012-01-03,5105607678,2598.12,Scio Healthcare Ltd [Sb]
Ef Nursing Island,Charges From Independent Providers,2012-01-03,5105607616,2598.12,Kite Hill Nursing Home [Sb]
Ef Nursing Island,Charges From Independent Providers,2012-01-03,5105607616,2598.12,Kite Hill Nursing Home [Sb]
Ef Nursing Island,Charges From Independent Providers,2012-01-03,5105607616,2598.12,Kite Hill Nursing Home [Sb]
Ef Nursing Island,Charges From Independent Providers,2012-01-03,5105607616,2598.12,Kite Hill Nursing Home [Sb]
Ef Nursing Island,Charges From Independent Providers,2012-01-03,5105607696,2598.12,London Residential Healthcare [Sb]
Ef Nursing Island,Charges From Independent Providers,2012-01-03,5105607651,2598.12,Sandown Nursing Home [Sb]
Ef Nursing Island,Charges From Independent Providers,2012-01-03,5105607685,2598.12,The Orchard House Care Home [Sb]
Ef Nursing Island,Charges From Independent Providers,2012-01-03,5105607664,2598.12,Ward House Ltd [Sb]
Ef Nursing Island,Charges From Independent Providers,2012-01-03,5105607666,2598.12,Buckland Care Ltd [Sb]
Ef Nursing Island,Charges From Independent Providers,2012-01-03,5105607666,2598.12,Buckland Care Ltd [Sb]
Ef Nursing Island,Charges From Independent Providers,2012-01-03,5105607666,2598.12,Buckland Care Ltd [Sb]
Ef Nursing Island,Charges From Independent Providers,2012-01-03,5105607666,2598.12,Buckland Care Ltd [Sb]
Ef Nursing Island,Charges From Independent Providers,2012-01-03,5105607666,2598.12,Buckland Care Ltd [Sb]
Ef Nursing Island,Charges From Independent Providers,2012-01-03,5105607666,2598.12,Buckland Care Ltd [Sb]
Ef Nursing Island,Charges From Independent Providers,2012-01-03,5105607642,2598.12,Woodside Hall Nursing Home [Sb]
Ef Nursing Island,Charges From Independent Providers,2012-01-03,5105607642,2598.12,Woodside Hall Nursing Home [Sb]
Ef Nursing Island,Charges From Independent Providers,2012-01-03,5105607666,2598.12,Buckland Care Ltd [Sb]
Ef Nursing Island,Charges From Independent Providers,2012-01-03,5105607666,2598.12,Buckland Care Ltd [Sb]
Ef Nursing Island,Charges From Independent Providers,2012-01-03,5105607666,2598.12,Buckland Care Ltd [Sb]
Ef Nursing Island,Charges From Independent Providers,2012-01-03,5105607666,2598.12,Buckland Care Ltd [Sb]
Ef Nursing Island,Charges From Independent Providers,2012-01-03,5105607666,2598.12,Buckland Care Ltd [Sb]
Ef Nursing Island,Charges From Independent Providers,2012-01-03,5105607678,2598.12,Scio Healthcare Ltd [Sb]
Ef Nursing Island,Charges From Independent Providers,2012-01-03,5105607685,2598.12,The Orchard House Care Home [Sb]
Ef Nursing Island,Charges From Independent Providers,2012-01-03,5105607685,2598.12,The Orchard House Care Home [Sb]
Ef Nursing Island,Charges From Independent Providers,2012-01-03,5105607664,2598.12,Ward House Ltd [Sb]
Ef Nursing Island,Charges From Independent Providers,2012-01-03,5105607664,2598.12,Ward House Ltd [Sb]
Ef Nursing Island,Charges From Independent Providers,2012-01-03,5105607633,2939.72,Vecta House Care Home [Sb]
Ef Nursing Island,Charges From Independent Providers,2012-01-03,5105607642,2598.12,Woodside Hall Nursing Home [Sb]
Ef Nursing Island,Charges From Independent Providers,2012-01-03,5105607664,2598.12,Ward House Ltd [Sb]
Ef Nursing Island,Charges From Independent Providers,2012-01-03,5105607664,2598.12,Ward House Ltd [Sb]
Ef Nursing Island,Charges From Independent Providers,2012-01-03,5105607664,2598.12,Ward House Ltd [Sb]
Ef Nursing Island,Charges From Independent Providers,2012-01-03,5105607685,2598.12,The Orchard House Care Home [Sb]
Ef Nursing Island,Charges From Independent Providers,2012-01-03,5105607685,2598.12,The Orchard House Care Home [Sb]
Ef Nursing Island,Charges From Independent Providers,2012-01-03,5105607666,2598.12,Buckland Care Ltd [Sb]
Ef Nursing Island,Charges From Independent Providers,2012-01-04,1700044835,-4453.92,Buckland Care Ltd [Sb]
Ef Nursing Island,Regular Respite Care,2012-01-09,5000174755,2876.49,Sandown Nursing Home [Sb]
Ef Nursing Island,Charges From Independent Providers,2012-01-10,5000175015,1948.59,Scio Healthcare Ltd [Sb]
Ef Nursing Island,Crisis Support For Carers,2012-01-10,5000175015,649.53,Scio Healthcare Ltd [Sb]
Ef Nursing Island,Charges From Independent Providers,2012-01-10,5000174943,2783.7,Scio Healthcare Ltd [Sb]
Ef Nursing Island,Charges From Independent Providers,2012-01-10,5000174942,3618.81,Scio Healthcare Ltd [Sb]
Ef Nursing Island,Charges From Independent Providers,2012-01-10,5000175015,742.32,Scio Healthcare Ltd [Sb]
Ef Nursing Island,Charges From Independent Providers,2012-01-11,5000175181,649.53,Scio Healthcare Ltd [Sb]
Ef Nursing Island,Charges From Independent Providers,2012-01-11,5000175164,4732.29,Scio Healthcare Ltd [Sb]
Ef Nursing Island,Charges From Independent Providers,2012-01-12,5000175497,2598.12,Buckland Care Ltd [Sb]
Ef Nursing Island,Charges From Independent Providers,2012-01-13,5000175527,3618.81,Sandown Nursing Home [Sb]
Ef Nursing Island,Charges From Independent Providers,2012-01-17,5000175964,835.11,Scio Healthcare Ltd [Sb]
Ef Nursing Island,Charges From Independent Providers,2012-01-17,1700044875,-2226.96,Buckland Care Ltd [Sb]
Ef Nursing Island,Charges From Independent Providers,2012-01-18,1700044885,-1299.06,Woodside Hall Nursing Home [Sb]
Ef Nursing Island,Charges From Independent Providers,2012-01-18,5000176011,7701.57,Scio Healthcare Ltd [Sb]
Ef Nursing Island,Charges From Independent Providers,2012-01-18,5000176006,6309.72,Scio Healthcare Ltd [Sb]
Ef Nursing Island,Charges From Independent Providers,2012-01-19,5000176434,742.32,The Orchard House Care Home [Sb]
Ef Nursing Island,Regular Respite Care,2012-01-19,5000176434,1948.59,The Orchard House Care Home [Sb]
Ef Nursing Island,Charges From Independent Providers,2012-01-19,5000176436,10392.48,The Orchard House Care Home [Sb]
Ef Nursing Island,Charges From Independent Providers,2012-01-19,5000176436,7144.83,The Orchard House Care Home [Sb]
Ef Nursing Island,Charges From Independent Providers,2012-01-20,5000176566,2598.12,Kite Hill Nursing Home [Sb]
Ef Nursing Island,Charges From Independent Providers,2012-01-20,5000176567,2134.17,Kite Hill Nursing Home [Sb]
Ef Nursing Island,Charges From Independent Providers,2012-01-24,5000176854,504.68,Island Healthcare Ltd [Sb]
Ef Nursing Island,Charges From Independent Providers,2012-01-24,5000176853,2598.12,Island Healthcare Ltd [Sb]
Ef Nursing Island,Charges From Independent Providers,2012-01-24,5000176868,3711.6,Island Healthcare Ltd [Sb]
Ef Nursing Island,Charges From Independent Providers,2012-01-25,5000177203,702.78,Island Healthcare Ltd [Sb]
Ef Nursing Island,Charges From Independent Providers,2012-01-25,5000177217,2598.12,Scio Healthcare Ltd [Sb]
Ef Nursing Island,Charges From Independent Providers,2012-01-25,5000177092,3711.6,Scio Healthcare Ltd [Sb]
Ef Nursing Island,Charges From Independent Providers,2012-01-25,5000177109,2598.12,Scio Healthcare Ltd [Sb]
Ef Nursing Island,Charges From Independent Providers,2012-01-25,5000177211,4639.5,Scio Healthcare Ltd [Sb]
Ef Nursing Island,Charges From Independent Providers,2012-01-25,5000177213,2598.12,Scio Healthcare Ltd [Sb]
Ef Nursing Island,Charges From Independent Providers,2012-01-26,5000177274,1670.22,Scio Healthcare Ltd [Sb]
Ef Nursing Island,Charges From Independent Providers,2012-01-31,5105612901,2598.12,Scio Healthcare Ltd [Sb]
Ef Nursing Island,Charges From Independent Providers,2012-01-31,5105612888,2598.12,Ward House Ltd [Sb]
Ef Nursing Island,Charges From Independent Providers,2012-01-31,5105612888,2598.12,Ward House Ltd [Sb]
Ef Nursing Island,Charges From Independent Providers,2012-01-31,5105612888,2598.12,Ward House Ltd [Sb]
Ef Nursing Island,Charges From Independent Providers,2012-01-31,5105612888,2598.12,Ward House Ltd [Sb]
Ef Nursing Island,Charges From Independent Providers,2012-01-31,5105612888,2598.12,Ward House Ltd [Sb]
Ef Nursing Island,Charges From Independent Providers,2012-01-31,5105612888,2598.12,Ward House Ltd [Sb]
Ef Nursing Island,Charges From Independent Providers,2012-01-31,5105612875,2598.12,Sandown Nursing Home [Sb]
Ef Nursing Island,Charges From Independent Providers,2012-01-31,5105612875,2598.12,Sandown Nursing Home [Sb]
Ef Nursing Island,Charges From Independent Providers,2012-01-31,5105612875,2598.12,Sandown Nursing Home [Sb]
Ef Nursing Island,Charges From Independent Providers,2012-01-31,5105612875,2598.12,Sandown Nursing Home [Sb]
Ef Nursing Island,Charges From Independent Providers,2012-01-31,5105612901,2598.12,Scio Healthcare Ltd [Sb]
Ef Nursing Island,Charges From Independent Providers,2012-01-31,5000177837,1577.43,Woodside Hall Nursing Home [Sb]
Ef Nursing Island,Charges From Independent Providers,2012-01-31,5105612866,2598.12,Woodside Hall Nursing Home [Sb]
Ef Nursing Island,Charges From Independent Providers,2012-01-31,5105612866,2598.12,Woodside Hall Nursing Home [Sb]
Ef Nursing Island,Charges From Independent Providers,2012-01-31,5105612866,2598.12,Woodside Hall Nursing Home [Sb]
Ef Nursing Island,Charges From Independent Providers,2012-01-31,5105612901,2598.12,Scio Healthcare Ltd [Sb]
Ef Nursing Island,Charges From Independent Providers,2012-01-31,5105612875,2598.12,Sandown Nursing Home [Sb]
Ef Nursing Island,Charges From Independent Providers,2012-01-31,5105612905,2598.12,The Orchard House Care Home [Sb]
Ef Nursing Island,Charges From Independent Providers,2012-01-31,5105612901,2598.12,Scio Healthcare Ltd [Sb]
Ef Nursing Island,Charges From Independent Providers,2012-01-31,5105612901,2598.12,Scio Healthcare Ltd [Sb]
Ef Nursing Island,Charges From Independent Providers,2012-01-31,5105612901,2598.12,Scio Healthcare Ltd [Sb]
Ef Nursing Island,Charges From Independent Providers,2012-01-31,5105612901,2598.12,Scio Healthcare Ltd [Sb]
Ef Nursing Island,Charges From Independent Providers,2012-01-31,5105612901,2598.12,Scio Healthcare Ltd [Sb]
Ef Nursing Island,Charges From Independent Providers,2012-01-31,5105612901,2598.12,Scio Healthcare Ltd [Sb]
Ef Nursing Island,Charges From Independent Providers,2012-01-31,5105612901,2598.12,Scio Healthcare Ltd [Sb]
Ef Nursing Island,Charges From Independent Providers,2012-01-31,5105612901,2598.12,Scio Healthcare Ltd [Sb]
Ef Nursing Island,Charges From Independent Providers,2012-01-31,5105612901,2598.12,Scio Healthcare Ltd [Sb]
Ef Nursing Island,Charges From Independent Providers,2012-01-31,5105612901,2598.12,Scio Healthcare Ltd [Sb]
Ef Nursing Island,Charges From Independent Providers,2012-01-31,5105612901,2598.12,Scio Healthcare Ltd [Sb]
Ef Nursing Island,Charges From Independent Providers,2012-01-31,5105612901,2598.12,Scio Healthcare Ltd [Sb]
Ef Nursing Island,Charges From Independent Providers,2012-01-31,5105612901,2598.12,Scio Healthcare Ltd [Sb]
Ef Nursing Island,Charges From Independent Providers,2012-01-31,5105612901,2598.12,Scio Healthcare Ltd [Sb]
Ef Nursing Island,Charges From Independent Providers,2012-01-31,5105612905,2598.12,The Orchard House Care Home [Sb]
Ef Nursing Island,Charges From Independent Providers,2012-01-31,5105612905,2598.12,The Orchard House Care Home [Sb]
Ef Nursing Island,Charges From Independent Providers,2012-01-31,5105612905,2598.12,The Orchard House Care Home [Sb]
Ef Nursing Island,Charges From Independent Providers,2012-01-31,5105612857,2939.72,Vecta House Care Home [Sb]
Ef Nursing Island,Charges From Independent Providers,2012-01-31,5105612901,2598.12,Scio Healthcare Ltd [Sb]
Ef Nursing Island,Charges From Independent Providers,2012-01-31,5105612901,2598.12,Scio Healthcare Ltd [Sb]
Ef Nursing Island,Charges From Independent Providers,2012-01-31,5105612901,2598.12,Scio Healthcare Ltd [Sb]
Ef Nursing Island,Charges From Independent Providers,2012-01-31,5105612901,2598.12,Scio Healthcare Ltd [Sb]
Ef Nursing Island,Charges From Independent Providers,2012-01-31,5105612901,2598.12,Scio Healthcare Ltd [Sb]
Ef Nursing Island,Charges From Independent Providers,2012-01-31,5105612901,2598.12,Scio Healthcare Ltd [Sb]
Ef Nursing Island,Charges From Independent Providers,2012-01-31,5105612875,2598.12,Sandown Nursing Home [Sb]
Ef Nursing Island,Charges From Independent Providers,2012-01-31,5105612890,2598.12,Buckland Care Ltd [Sb]
Ef Nursing Island,Charges From Independent Providers,2012-01-31,5105612840,2598.12,Kite Hill Nursing Home [Sb]
Ef Nursing Island,Charges From Independent Providers,2012-01-31,5105612840,2598.12,Kite Hill Nursing Home [Sb]
Ef Nursing Island,Charges From Independent Providers,2012-01-31,5105612916,2598.12,London Residential Healthcare [Sb]
Ef Nursing Island,Charges From Independent Providers,2012-01-31,5105612916,2598.12,London Residential Healthcare [Sb]
Ef Nursing Island,Charges From Independent Providers,2012-01-31,5105612916,2598.12,London Residential Healthcare [Sb]
Ef Nursing Island,Charges From Independent Providers,2012-01-31,5105612890,2598.12,Buckland Care Ltd [Sb]
Ef Nursing Island,Charges From Independent Providers,2012-01-31,5105612890,2598.12,Buckland Care Ltd [Sb]
Ef Nursing Island,Charges From Independent Providers,2012-01-31,5105612890,2598.12,Buckland Care Ltd [Sb]
Ef Nursing Island,Charges From Independent Providers,2012-01-31,5105612890,2598.12,Buckland Care Ltd [Sb]
Ef Nursing Island,Charges From Independent Providers,2012-01-31,5105612890,2598.12,Buckland Care Ltd [Sb]
Ef Nursing Island,Charges From Independent Providers,2012-01-31,5105612890,2598.12,Buckland Care Ltd [Sb]
Ef Nursing Island,Charges From Independent Providers,2012-01-31,5105612890,2598.12,Buckland Care Ltd [Sb]
Ef Nursing Island,Charges From Independent Providers,2012-01-31,5105612840,2598.12,Kite Hill Nursing Home [Sb]
Ef Nursing Island,Charges From Independent Providers,2012-01-31,5105612840,2598.12,Kite Hill Nursing Home [Sb]
Ef Nursing Island,Charges From Independent Providers,2012-01-31,5105612865,2598.12,Island Healthcare Ltd [Sb]
Ef Nursing Island,Charges From Independent Providers,2012-01-31,5105612865,2598.12,Island Healthcare Ltd [Sb]
Ef Nursing Island,Charges From Independent Providers,2012-01-31,5105612865,2598.12,Island Healthcare Ltd [Sb]
Ef Nursing Island,Charges From Independent Providers,2012-01-31,5105612865,504.68,Island Healthcare Ltd [Sb]
Ef Nursing Island,Charges From Independent Providers,2012-01-31,5105612865,2598.12,Island Healthcare Ltd [Sb]
Ef Nursing Island,Charges From Independent Providers,2012-01-31,5105612865,2598.12,Island Healthcare Ltd [Sb]
Ef Nursing Island,Charges From Independent Providers,2012-01-31,5105612865,2598.12,Island Healthcare Ltd [Sb]
Ef Nursing Island,Charges From Independent Providers,2012-01-31,5105612865,2598.12,Island Healthcare Ltd [Sb]
Ef Nursing Island,Charges From Independent Providers,2012-01-31,5105612865,2598.12,Island Healthcare Ltd [Sb]
Ef Nursing Island,Charges From Independent Providers,2012-01-31,5105612865,2598.12,Island Healthcare Ltd [Sb]
Ef Nursing Island,Charges From Independent Providers,2012-01-31,5105612865,2598.12,Island Healthcare Ltd [Sb]
Ef Nursing Island,Charges From Independent Providers,2012-01-31,5105612890,2598.12,Buckland Care Ltd [Sb]
Ef Nursing Island,Charges From Independent Providers,2012-01-31,5000177842,2783.7,London Residential Healthcare [Sb]
Ef Nursing Island,Charges From Independent Providers,2012-01-31,5105612875,2598.12,Sandown Nursing Home [Sb]
Ef Nursing Island,Charges From Independent Providers,2012-01-31,5105612865,2598.12,Island Healthcare Ltd [Sb]
Ef Nursing Island,Charges From Independent Providers,2012-01-31,5105612875,2598.12,Sandown Nursing Home [Sb]
Ef Nursing Island,Charges From Independent Providers,2012-01-31,5105612875,2598.12,Sandown Nursing Home [Sb]
Ef Nursing Island,Charges From Independent Providers,2012-01-31,5105612875,2598.12,Sandown Nursing Home [Sb]
Ef Nursing Island,Charges From Independent Providers,2012-02-06,1700044939,-1206.27,The Orchard House Care Home [Sb]
Ef Nursing Island,Charges From Independent Providers,2012-02-06,5105614280,2598.12,Kite Hill Nursing Home [Sb]
Ef Nursing Island,Charges From Independent Providers,2012-02-06,5000178421,16331.04,The Orchard House Care Home [Sb]
Ef Nursing Island,Regular Respite Care,2012-02-06,5000178417,551.52,Sandown Nursing Home [Sb]
Ef Nursing Island,Charges From Independent Providers,2012-02-06,5105614281,2598.12,Buckland Care Ltd [Sb]
Ef Nursing Island,Regular Respite Care,2012-02-07,5000178513,742.32,Sandown Nursing Home [Sb]
Ef Nursing Island,Charges From Independent Providers,2012-02-07,5000178512,1391.85,Sandown Nursing Home [Sb]
Ef Nursing Island,Charges From Independent Providers,2012-02-07,5000178511,1391.85,Sandown Nursing Home [Sb]
Ef Nursing Island,Charges From Independent Providers,2012-02-07,5000178502,3062.07,Scio Healthcare Ltd [Sb]
Ef Nursing Island,Charges From Independent Providers,2012-02-07,1700044957,-6680.88,Island Healthcare Ltd [Sb]
Ef Nursing Island,Crisis Support For Carers,2012-02-07,5000178511,649.53,Sandown Nursing Home [Sb]
Ef Nursing Island,Charges From Independent Providers,2012-02-08,5000178894,2876.49,Kite Hill Nursing Home [Sb]
Ef Nursing Island,Charges From Independent Providers,2012-02-08,5000178893,2134.17,Kite Hill Nursing Home [Sb]
Ef Nursing Island,Charges From Independent Providers,2012-02-09,5000179478,2598.12,Woodside Hall Nursing Home [Sb]
Ef Nursing Island,Charges From Independent Providers,2012-02-13,5000179972,6866.46,Sandown Nursing Home [Sb]
Ef Nursing Island,Charges From Independent Providers,2012-02-15,5000180531,1484.64,Buckland Care Ltd [Sb]
Ef Nursing Island,Charges From Independent Providers,2012-02-15,5000180530,3804.39,Buckland Care Ltd [Sb]
Ef Nursing Island,Charges From Independent Providers,2012-02-15,5000180528,2690.91,Buckland Care Ltd [Sb]
Ef Nursing Island,Charges From Independent Providers,2012-02-16,5000180813,6495.3,London Residential Healthcare [Sb]
Ef Nursing Island,Charges From Independent Providers,2012-02-21,5000181542,2783.7,London Residential Healthcare [Sb]
Ef Nursing Island,Charges From Independent Providers,2012-02-23,5105617378,2598.12,Island Healthcare Ltd [Sb]
Ef Nursing Island,Charges From Independent Providers,2012-02-23,5105617378,2598.12,Island Healthcare Ltd [Sb]
Ef Nursing Island,Charges From Independent Providers,2012-02-23,5105617378,2598.12,Island Healthcare Ltd [Sb]
Ef Nursing Island,Charges From Independent Providers,2012-02-23,5105617378,2598.12,Island Healthcare Ltd [Sb]
Ef Nursing Island,Charges From Independent Providers,2012-02-23,5105617378,2598.12,Island Healthcare Ltd [Sb]
Ef Nursing Island,Charges From Independent Providers,2012-02-23,5105617378,2598.12,Island Healthcare Ltd [Sb]
Ef Nursing Island,Charges From Independent Providers,2012-02-23,5105617378,2598.12,Island Healthcare Ltd [Sb]
Ef Nursing Island,Charges From Independent Providers,2012-02-23,5105617378,2598.12,Island Healthcare Ltd [Sb]
Ef Nursing Island,Charges From Independent Providers,2012-02-23,5105617378,504.68,Island Healthcare Ltd [Sb]
Ef Nursing Island,Charges From Independent Providers,2012-02-23,5105617378,2598.12,Island Healthcare Ltd [Sb]
Ef Nursing Island,Charges From Independent Providers,2012-02-23,5105617378,2598.12,Island Healthcare Ltd [Sb]
Ef Nursing Island,Charges From Independent Providers,2012-02-28,5105618343,2598.12,Scio Healthcare Ltd [Sb]
Ef Nursing Island,Charges From Independent Providers,2012-02-28,5105618343,2598.12,Scio Healthcare Ltd [Sb]
Ef Nursing Island,Charges From Independent Providers,2012-02-28,5105618343,2598.12,Scio Healthcare Ltd [Sb]
Ef Nursing Island,Charges From Independent Providers,2012-02-28,5105618343,2598.12,Scio Healthcare Ltd [Sb]
Ef Nursing Island,Charges From Independent Providers,2012-02-28,5105618343,2598.12,Scio Healthcare Ltd [Sb]
Ef Nursing Island,Charges From Independent Providers,2012-02-28,5105618332,2598.12,Buckland Care Ltd [Sb]
Ef Nursing Island,Charges From Independent Providers,2012-02-28,5105618308,2598.12,Woodside Hall Nursing Home [Sb]
Ef Nursing Island,Charges From Independent Providers,2012-02-28,5105618308,2598.12,Woodside Hall Nursing Home [Sb]
Ef Nursing Island,Charges From Independent Providers,2012-02-28,5105618308,2598.12,Woodside Hall Nursing Home [Sb]
Ef Nursing Island,Charges From Independent Providers,2012-02-28,5105618332,2598.12,Buckland Care Ltd [Sb]
Ef Nursing Island,Charges From Independent Providers,2012-02-28,5105618332,2598.12,Buckland Care Ltd [Sb]
Ef Nursing Island,Charges From Independent Providers,2012-02-28,5105618332,2598.12,Buckland Care Ltd [Sb]
Ef Nursing Island,Charges From Independent Providers,2012-02-28,5105618332,2598.12,Buckland Care Ltd [Sb]
Ef Nursing Island,Charges From Independent Providers,2012-02-28,5105618343,2598.12,Scio Healthcare Ltd [Sb]
Ef Nursing Island,Charges From Independent Providers,2012-02-28,5105618343,2598.12,Scio Healthcare Ltd [Sb]
Ef Nursing Island,Charges From Independent Providers,2012-02-28,5105618343,2598.12,Scio Healthcare Ltd [Sb]
Ef Nursing Island,Charges From Independent Providers,2012-02-28,5105618343,2598.12,Scio Healthcare Ltd [Sb]
Ef Nursing Island,Charges From Independent Providers,2012-02-28,5105618343,2598.12,Scio Healthcare Ltd [Sb]
Ef Nursing Island,Charges From Independent Providers,2012-02-28,5105618343,2598.12,Scio Healthcare Ltd [Sb]
Ef Nursing Island,Charges From Independent Providers,2012-02-28,5105618330,2598.12,Ward House Ltd [Sb]
Ef Nursing Island,Charges From Independent Providers,2012-02-28,5105618300,2939.72,Vecta House Care Home [Sb]
Ef Nursing Island,Charges From Independent Providers,2012-02-28,5105618332,2598.12,Buckland Care Ltd [Sb]
Ef Nursing Island,Charges From Independent Providers,2012-02-28,5105618332,2598.12,Buckland Care Ltd [Sb]
Ef Nursing Island,Charges From Independent Providers,2012-02-28,5105618332,2598.12,Buckland Care Ltd [Sb]
Ef Nursing Island,Charges From Independent Providers,2012-02-28,5105618332,2598.12,Buckland Care Ltd [Sb]
Ef Nursing Island,Charges From Independent Providers,2012-02-28,5105618332,2598.12,Buckland Care Ltd [Sb]
Ef Nursing Island,Charges From Independent Providers,2012-02-28,5105618332,2598.12,Buckland Care Ltd [Sb]
Ef Nursing Island,Charges From Independent Providers,2012-02-28,5105618349,2598.12,The Orchard House Care Home [Sb]
Ef Nursing Island,Charges From Independent Providers,2012-02-28,5105618349,2598.12,The Orchard House Care Home [Sb]
Ef Nursing Island,Charges From Independent Providers,2012-02-28,5105618349,2598.12,The Orchard House Care Home [Sb]
Ef Nursing Island,Charges From Independent Providers,2012-02-28,5105618343,2598.12,Scio Healthcare Ltd [Sb]
Ef Nursing Island,Charges From Independent Providers,2012-02-28,5105618330,2598.12,Ward House Ltd [Sb]
Ef Nursing Island,Charges From Independent Providers,2012-02-28,5105618343,2598.12,Scio Healthcare Ltd [Sb]
Ef Nursing Island,Charges From Independent Providers,2012-02-28,5105618343,2598.12,Scio Healthcare Ltd [Sb]
Ef Nursing Island,Charges From Independent Providers,2012-02-28,5105618343,2598.12,Scio Healthcare Ltd [Sb]
Ef Nursing Island,Charges From Independent Providers,2012-02-28,5105618343,2598.12,Scio Healthcare Ltd [Sb]
Ef Nursing Island,Charges From Independent Providers,2012-02-28,5105618343,2598.12,Scio Healthcare Ltd [Sb]
Ef Nursing Island,Charges From Independent Providers,2012-02-28,5105618343,2598.12,Scio Healthcare Ltd [Sb]
Ef Nursing Island,Charges From Independent Providers,2012-02-28,5105618343,2598.12,Scio Healthcare Ltd [Sb]
Ef Nursing Island,Charges From Independent Providers,2012-02-28,5105618343,2598.12,Scio Healthcare Ltd [Sb]
Ef Nursing Island,Charges From Independent Providers,2012-02-28,5105618343,2598.12,Scio Healthcare Ltd [Sb]
Ef Nursing Island,Charges From Independent Providers,2012-02-28,5105618343,2598.12,Scio Healthcare Ltd [Sb]
Ef Nursing Island,Charges From Independent Providers,2012-02-28,5105618330,2598.12,Ward House Ltd [Sb]
Ef Nursing Island,Charges From Independent Providers,2012-02-28,5105618330,2598.12,Ward House Ltd [Sb]
Ef Nursing Island,Charges From Independent Providers,2012-02-28,5105618330,2598.12,Ward House Ltd [Sb]
Ef Nursing Island,Charges From Independent Providers,2012-02-28,5105618330,2598.12,Ward House Ltd [Sb]
Ef Nursing Island,Charges From Independent Providers,2012-02-28,5105618349,2598.12,The Orchard House Care Home [Sb]
Ef Nursing Island,Charges From Independent Providers,2012-02-28,5105618283,2598.12,Kite Hill Nursing Home [Sb]
Ef Nursing Island,Charges From Independent Providers,2012-02-28,5105618283,2598.12,Kite Hill Nursing Home [Sb]
Ef Nursing Island,Charges From Independent Providers,2012-02-28,5105618317,2598.12,Sandown Nursing Home [Sb]
Ef Nursing Island,Charges From Independent Providers,2012-02-28,5105618283,2598.12,Kite Hill Nursing Home [Sb]
Ef Nursing Island,Charges From Independent Providers,2012-02-28,5000182506,2598.12,London Residential Healthcare [Sb]
Ef Nursing Island,Charges From Independent Providers,2012-02-28,5105618317,2598.12,Sandown Nursing Home [Sb]
Ef Nursing Island,Charges From Independent Providers,2012-02-28,5105618360,2598.12,London Residential Healthcare [Sb]
Ef Nursing Island,Charges From Independent Providers,2012-02-28,5105618360,2598.12,London Residential Healthcare [Sb]
Ef Nursing Island,Charges From Independent Providers,2012-02-28,5105618317,2598.12,Sandown Nursing Home [Sb]
Ef Nursing Island,Charges From Independent Providers,2012-02-28,5105618317,2598.12,Sandown Nursing Home [Sb]
Ef Nursing Island,Charges From Independent Providers,2012-02-28,5105618317,2598.12,Sandown Nursing Home [Sb]
Ef Nursing Island,Charges From Independent Providers,2012-02-28,5105618317,2598.12,Sandown Nursing Home [Sb]
Ef Nursing Island,Charges From Independent Providers,2012-02-28,5105618317,2598.12,Sandown Nursing Home [Sb]
Ef Nursing Island,Charges From Independent Providers,2012-02-28,5105618317,2598.12,Sandown Nursing Home [Sb]
Ef Nursing Island,Charges From Independent Providers,2012-02-28,5105618317,2598.12,Sandown Nursing Home [Sb]
Ef Nursing Island,Charges From Independent Providers,2012-02-28,5105618360,2598.12,London Residential Healthcare [Sb]
Ef Nursing Island,Charges From Independent Providers,2012-02-28,5105618283,2598.12,Kite Hill Nursing Home [Sb]
Ef Nursing Island,Charges From Independent Providers,2012-02-29,5000182585,2505.33,Scio Healthcare Ltd [Sb]
Ef Nursing Island,Charges From Independent Providers,2012-02-29,5000182684,742.32,Scio Healthcare Ltd [Sb]
Ef Nursing Island,Charges From Independent Providers,2012-03-01,5000182827,2598.12,Woodside Hall Nursing Home [Sb]
Ef Nursing Island,Charges From Independent Providers,2012-03-01,5000182786,556.74,Buckland Care Ltd [Sb]
Ef Nursing Island,Charges From Independent Providers,2012-03-01,5000182777,1391.85,Sandown Nursing Home [Sb]
Ef Nursing Island,Charges From Independent Providers,2012-03-01,5000182777,649.53,Sandown Nursing Home [Sb]
Ef Nursing Island,Charges From Independent Providers,2012-03-02,1700045091,-649.53,Scio Healthcare Ltd [Sb]
Ef Nursing Island,Charges From Independent Providers,2012-03-05,5105619763,2598.12,Kite Hill Nursing Home [Sb]
Ef Nursing Island,Charges From Independent Providers,2012-03-05,5105619765,2598.12,Buckland Care Ltd [Sb]
Ef Nursing Island,Charges From Independent Providers,2012-03-05,5105619765,2598.12,Buckland Care Ltd [Sb]
Ef Nursing Island,Regular Respite Care,2012-03-06,5000183490,2690.91,Sandown Nursing Home [Sb]
Ef Nursing Island,Regular Respite Care,2012-03-06,5000183492,2876.49,Sandown Nursing Home [Sb]
Ef Nursing Island,Charges From Independent Providers,2012-03-19,5000186017,2783.7,The Orchard House Care Home [Sb]
Ef Nursing Island,Charges From Independent Providers,2012-03-20,1700045183,-742.32,Sandown Nursing Home [Sb]
Ef Nursing Island,Charges From Independent Providers,2012-03-20,1700045184,-3062.07,Sandown Nursing Home [Sb]
Ef Nursing Island,Charges From Independent Providers,2012-03-21,1700045188,-649.53,Sandown Nursing Home [Sb]
Ef Nursing Island,Charges From Independent Providers,2012-03-26,5000187046,1670.22,Sandown Nursing Home [Sb]
Ef Nursing Island,Charges From Independent Providers,2012-03-26,5000187047,2969.28,Sandown Nursing Home [Sb]
Ef Nursing Island,Charges From Independent Providers,2012-03-26,5000187087,3711.6,London Residential Healthcare [Sb]
Ef Nursing Island,Charges From Independent Providers,2012-03-26,5000187060,3618.81,Sandown Nursing Home [Sb]
Ef Nursing Island,Regular Respite Care,2012-03-26,5000187171,1034.1,Sandown Nursing Home [Sb]
Ef Nursing Island,Charges From Independent Providers,2012-03-27,5105623866,2598.12,London Residential Healthcare [Sb]
Ef Nursing Island,Charges From Independent Providers,2012-03-27,5105623836,2598.12,Ward House Ltd [Sb]
Ef Nursing Island,Charges From Independent Providers,2012-03-27,5105623836,2598.12,Ward House Ltd [Sb]
Ef Nursing Island,Charges From Independent Providers,2012-03-27,5105623836,2598.12,Ward House Ltd [Sb]
Ef Nursing Island,Charges From Independent Providers,2012-03-27,5105623836,2598.12,Ward House Ltd [Sb]
Ef Nursing Island,Charges From Independent Providers,2012-03-27,5105623838,2598.12,Buckland Care Ltd [Sb]
Ef Nursing Island,Charges From Independent Providers,2012-03-27,5105623836,2598.12,Ward House Ltd [Sb]
Ef Nursing Island,Charges From Independent Providers,2012-03-27,5105623866,2598.12,London Residential Healthcare [Sb]
Ef Nursing Island,Charges From Independent Providers,2012-03-27,5105623805,2939.72,Vecta House Care Home [Sb]
Ef Nursing Island,Charges From Independent Providers,2012-03-27,5105623838,2598.12,Buckland Care Ltd [Sb]
Ef Nursing Island,Charges From Independent Providers,2012-03-27,5105623838,2598.12,Buckland Care Ltd [Sb]
Ef Nursing Island,Charges From Independent Providers,2012-03-27,5105623838,2598.12,Buckland Care Ltd [Sb]
Ef Nursing Island,Charges From Independent Providers,2012-03-27,5105623838,2598.12,Buckland Care Ltd [Sb]
Ef Nursing Island,Charges From Independent Providers,2012-03-27,5105623838,2598.12,Buckland Care Ltd [Sb]
Ef Nursing Island,Charges From Independent Providers,2012-03-27,5105623849,2598.12,Scio Healthcare Ltd [Sb]
Ef Nursing Island,Charges From Independent Providers,2012-03-27,5105623855,2598.12,The Orchard House Care Home [Sb]
Ef Nursing Island,Charges From Independent Providers,2012-03-27,5105623836,2598.12,Ward House Ltd [Sb]
Ef Nursing Island,Charges From Independent Providers,2012-03-27,5105623838,2598.12,Buckland Care Ltd [Sb]
Ef Nursing Island,Charges From Independent Providers,2012-03-27,5105623838,2598.12,Buckland Care Ltd [Sb]
Ef Nursing Island,Charges From Independent Providers,2012-03-27,5105623838,2598.12,Buckland Care Ltd [Sb]
Ef Nursing Island,Charges From Independent Providers,2012-03-27,5105623838,2598.12,Buckland Care Ltd [Sb]
Ef Nursing Island,Charges From Independent Providers,2012-03-27,5105623838,2598.12,Buckland Care Ltd [Sb]
Ef Nursing Island,Charges From Independent Providers,2012-03-27,5105623838,2598.12,Buckland Care Ltd [Sb]
Ef Nursing Island,Charges From Independent Providers,2012-03-27,5105623838,2598.12,Buckland Care Ltd [Sb]
Ef Nursing Island,Charges From Independent Providers,2012-03-27,5105623814,2598.12,Woodside Hall Nursing Home [Sb]
Ef Nursing Island,Charges From Independent Providers,2012-03-27,5105623814,2598.12,Woodside Hall Nursing Home [Sb]
Ef Nursing Island,Charges From Independent Providers,2012-03-27,5105623814,2598.12,Woodside Hall Nursing Home [Sb]
Ef Nursing Island,Charges From Independent Providers,2012-03-27,5105623814,2598.12,Woodside Hall Nursing Home [Sb]
Ef Nursing Island,Charges From Independent Providers,2012-03-27,5105623814,2598.12,Woodside Hall Nursing Home [Sb]
Ef Nursing Island,Charges From Independent Providers,2012-03-27,5105623866,2598.12,London Residential Healthcare [Sb]
Ef Nursing Island,Charges From Independent Providers,2012-03-27,5105623866,2598.12,London Residential Healthcare [Sb]
Ef Nursing Island,Charges From Independent Providers,2012-03-27,5105623866,2598.12,London Residential Healthcare [Sb]
Ef Nursing Island,Charges From Independent Providers,2012-03-27,5105623866,2598.12,London Residential Healthcare [Sb]
Ef Nursing Island,Charges From Independent Providers,2012-03-27,5105623855,2598.12,The Orchard House Care Home [Sb]
Ef Nursing Island,Charges From Independent Providers,2012-03-27,5105623813,2598.12,Island Healthcare Ltd [Sb]
Ef Nursing Island,Charges From Independent Providers,2012-03-27,5105623849,2598.12,Scio Healthcare Ltd [Sb]
Ef Nursing Island,Charges From Independent Providers,2012-03-27,5105623849,2598.12,Scio Healthcare Ltd [Sb]
Ef Nursing Island,Charges From Independent Providers,2012-03-27,5105623849,2598.12,Scio Healthcare Ltd [Sb]
Ef Nursing Island,Charges From Independent Providers,2012-03-27,5105623849,2598.12,Scio Healthcare Ltd [Sb]
Ef Nursing Island,Charges From Independent Providers,2012-03-27,5105623849,2598.12,Scio Healthcare Ltd [Sb]
Ef Nursing Island,Charges From Independent Providers,2012-03-27,5105623849,2598.12,Scio Healthcare Ltd [Sb]
Ef Nursing Island,Charges From Independent Providers,2012-03-27,5105623849,2598.12,Scio Healthcare Ltd [Sb]
Ef Nursing Island,Charges From Independent Providers,2012-03-27,5105623849,2598.12,Scio Healthcare Ltd [Sb]
Ef Nursing Island,Charges From Independent Providers,2012-03-27,5105623849,2598.12,Scio Healthcare Ltd [Sb]
Ef Nursing Island,Charges From Independent Providers,2012-03-27,5105623849,2598.12,Scio Healthcare Ltd [Sb]
Ef Nursing Island,Charges From Independent Providers,2012-03-27,5105623849,2598.12,Scio Healthcare Ltd [Sb]
Ef Nursing Island,Charges From Independent Providers,2012-03-27,5105623789,2598.12,Kite Hill Nursing Home [Sb]
Ef Nursing Island,Charges From Independent Providers,2012-03-27,5105623789,2598.12,Kite Hill Nursing Home [Sb]
Ef Nursing Island,Charges From Independent Providers,2012-03-27,5105623813,2598.12,Island Healthcare Ltd [Sb]
Ef Nursing Island,Charges From Independent Providers,2012-03-27,5105623813,2598.12,Island Healthcare Ltd [Sb]
Ef Nursing Island,Charges From Independent Providers,2012-03-27,5105623813,2598.12,Island Healthcare Ltd [Sb]
Ef Nursing Island,Charges From Independent Providers,2012-03-27,5105623813,2598.12,Island Healthcare Ltd [Sb]
Ef Nursing Island,Charges From Independent Providers,2012-03-27,5105623813,2598.12,Island Healthcare Ltd [Sb]
Ef Nursing Island,Charges From Independent Providers,2012-03-27,5105623813,2598.12,Island Healthcare Ltd [Sb]
Ef Nursing Island,Charges From Independent Providers,2012-03-27,5105623813,2598.12,Island Healthcare Ltd [Sb]
Ef Nursing Island,Charges From Independent Providers,2012-03-27,5105623789,2598.12,Kite Hill Nursing Home [Sb]
Ef Nursing Island,Charges From Independent Providers,2012-03-27,5105623789,2598.12,Kite Hill Nursing Home [Sb]
Ef Nursing Island,Charges From Independent Providers,2012-03-27,5105623789,2598.12,Kite Hill Nursing Home [Sb]
Ef Nursing Island,Charges From Independent Providers,2012-03-27,5105623849,2598.12,Scio Healthcare Ltd [Sb]
Ef Nursing Island,Charges From Independent Providers,2012-03-27,5105623849,2598.12,Scio Healthcare Ltd [Sb]
Ef Nursing Island,Charges From Independent Providers,2012-03-27,5105623849,2598.12,Scio Healthcare Ltd [Sb]
Ef Nursing Island,Charges From Independent Providers,2012-03-27,5105623823,2598.12,Sandown Nursing Home [Sb]
Ef Nursing Island,Charges From Independent Providers,2012-03-27,5105623823,2598.12,Sandown Nursing Home [Sb]
Ef Nursing Island,Charges From Independent Providers,2012-03-27,5105623813,2598.12,Island Healthcare Ltd [Sb]
Ef Nursing Island,Charges From Independent Providers,2012-03-27,5105623823,2598.12,Sandown Nursing Home [Sb]
Ef Nursing Island,Charges From Independent Providers,2012-03-27,5105623823,2598.12,Sandown Nursing Home [Sb]
Ef Nursing Island,Charges From Independent Providers,2012-03-27,5105623823,2598.12,Sandown Nursing Home [Sb]
Ef Nursing Island,Charges From Independent Providers,2012-03-27,5105623823,2598.12,Sandown Nursing Home [Sb]
Ef Nursing Island,Charges From Independent Providers,2012-03-27,5105623823,2598.12,Sandown Nursing Home [Sb]
Ef Nursing Island,Charges From Independent Providers,2012-03-27,5105623823,2598.12,Sandown Nursing Home [Sb]
Ef Nursing Island,Charges From Independent Providers,2012-03-27,5105623855,2598.12,The Orchard House Care Home [Sb]
Ef Nursing Island,Charges From Independent Providers,2012-03-27,5105623823,2598.12,Sandown Nursing Home [Sb]
Ef Nursing Island,Charges From Independent Providers,2012-03-27,5105623823,2598.12,Sandown Nursing Home [Sb]
Ef Nursing Island,Charges From Independent Providers,2012-03-27,5105623849,2598.12,Scio Healthcare Ltd [Sb]
Ef Nursing Island,Charges From Independent Providers,2012-03-27,5105623849,2598.12,Scio Healthcare Ltd [Sb]
Ef Nursing Island,Charges From Independent Providers,2012-03-27,5105623849,2598.12,Scio Healthcare Ltd [Sb]
Ef Nursing Island,Charges From Independent Providers,2012-03-27,5105623849,2598.12,Scio Healthcare Ltd [Sb]
Ef Nursing Island,Charges From Independent Providers,2012-03-27,5105623849,2598.12,Scio Healthcare Ltd [Sb]
Ef Nursing Island,Charges From Independent Providers,2012-03-27,5105623849,2598.12,Scio Healthcare Ltd [Sb]
Ef Nursing Island,Charges From Independent Providers,2012-03-27,5000187325,2134.17,Sandown Nursing Home [Sb]
Ef Nursing Island,Charges From Independent Providers,2012-03-27,5105623823,2598.12,Sandown Nursing Home [Sb]
Ef Nursing Island,Charges From Independent Providers,2012-03-27,5105623855,2598.12,The Orchard House Care Home [Sb]
Ef Nursing Island,Charges From Independent Providers,2012-03-30,5000188514,2598.12,Scio Healthcare Ltd [Sb]
Ef Nursing Island,Charges From Independent Providers,2012-03-30,5000188513,3062.07,Scio Healthcare Ltd [Sb]
Ef Nursing Island,Charges From Independent Providers,2012-03-30,5000188315,2505.33,Scio Healthcare Ltd [Sb]
